fUSD/lending_fUSD_20240212
["ID","MTS","AMOUNT","RATE_DAILY","PERIOD"]
[313879406,1707768633963,-500.0,0.00022999,2]
[313879407,1707768633974,-171.21567377,0.00022999,2]
[313879408,1707768633984,-689724.73409807,0.00023,2]
[313879409,1707768634000,-45181.09074361,0.00023,2]
[313879410,1707768634012,-12559.80288,0.00023,2]
[313879411,1707768634024,-12962.29331411,0.00023,2]
[313879412,1707768634441,250.0,0.00021918,2]
[313879413,1707768638407,-56676.04706,0.00023,2]
[313879414,1707768638504,-737.80331706,0.00023,2]
[313879415,1707768638516,-741.27723955,0.00023,2]
[313879416,1707768638527,-420.8888349,0.00023,2]
[313879417,1707768638539,-313.89851893,0.00023,2]
[313879418,1707768638630,-9921.4718037,0.00023,2]
[313879419,1707768638738,-18706.898255,0.00023,2]
[313879466,1707768641687,-255.28999744,0.000229,2]
[313879467,1707768641904,-4.81445812,0.000229,2]
[313879468,1707768641913,-14940.71054082,0.00023,2]
[313879492,1707768643414,-25330.94279354,0.00023,2]
[313879493,1707768643427,-2482.0548,0.00023,2]
[313879494,1707768643438,-1268.17407557,0.00023,2]
[313879495,1707768643450,-3330.38106943,0.00023,2]
[313879496,1707768643461,-492.04979173,0.00023,2]
[313879497,1707768643473,-670.87772281,0.00023,2]
[313879498,1707768643485,-21007.6573,0.00023,2]
[313879499,1707768643497,-2841.51644563,0.00023,2]
[313879500,1707768643509,-2710.78180692,0.00023,2]
[313879501,1707768643631,-172315.25813817,0.00023,2]
[313879502,1707768643641,-397962.87914553,0.00023,2]
[313879503,1707768643650,-150.0,0.00023,2]
[313879504,1707768643660,-310.0,0.00023005,2]
[313879505,1707768643669,-154.54,0.00023086,2]
[313879507,1707768643678,-150.0,0.00023094,2]
[313879509,1707768643687,-150.0,0.00023113,2]
[313879511,1707768643697,-169.17,0.00023204,2]
[313879512,1707768643708,-761.23,0.00023393,2]
[313879514,1707768643717,-9331.52947864,0.00023535,2]
[313879516,1707768643726,-3650.60603199,0.00023898,2]
[313879517,1707768643735,-180.78,0.00023929,2]
[313879519,1707768643745,-202.17515354,0.00024,2]
[313879520,1707768643754,-9331.52947864,0.00024171,2]
[313879522,1707768643763,-319.78,0.00024332,2]
[313879524,1707768643772,-1952.66,0.00024384,2]
[313879525,1707768643782,-1000.0,0.00024473,2]
[313879526,1707768643791,-150.0,0.00024483,2]
[313879527,1707768643800,-5000.0,0.000245,2]
[313879529,1707768643810,-310.0,0.00024649,2]
[313879531,1707768643819,-169.17,0.00024655,2]
[313879533,1707768643831,-250.0,0.00024658,2]
[313879535,1707768643840,-150.0,0.0002474,2]
[313879537,1707768643849,-5737.93648614,0.0002479,2]
[313879539,1707768643858,-5737.93648607,0.0002479,2]
[313879541,1707768643867,-978.10918798,0.00024799,2]
[313879543,1707768643876,-978.10918798,0.00024799,2]
[313879545,1707768643886,-9331.52947864,0.00024808,2]
[313879548,1707768643899,-3650.60603199,0.00024899,2]
[313879550,1707768643909,-1250.0,0.00025,3]
[313879552,1707768643919,-1909.75102483,0.00025,2]
[313879554,1707768643928,-180.78,0.00025017,2]
[313879556,1707768643938,-761.23,0.00025036,2]
[313879558,1707768643947,-978.10918798,0.00025274,2]
[313879560,1707768643956,-5737.93648607,0.00025274,2]
[313879562,1707768643965,-206.0,0.00025398,2]
[313879564,1707768643974,-207.0,0.00025398,2]
[313879566,1707768643983,-9331.52947864,0.00025444,2]
[313879568,1707768643992,-3650.60603199,0.00025899,2]
[313879570,1707768644002,-9331.52947864,0.00026081,2]
[313879571,1707768644011,-180.78,0.00026105,2]
[313879572,1707768644020,-169.17,0.00026105,2]
[313879573,1707768644030,-310.0,0.00026293,2]
[313879574,1707768644039,-603.3992564,0.000264,2]
[313879575,1707768644048,-978.10918798,0.00026463,2]
[313879576,1707768644057,-5737.93648607,0.00026463,2]
[313879577,1707768644066,-319.78,0.00026596,2]
[313879578,1707768644076,-761.23,0.0002668,2]
[313879579,1707768644086,-9331.52947864,0.00026717,2]
[313879580,1707768644095,-3650.60603199,0.00026899,3]
[313879581,1707768644104,-278.2434589,0.00026908,2]
[313879582,1707768644114,-49430.42582285,0.00026919,2]
[313879583,1707768644123,-1300.0,0.00027,3]
[313879584,1707768644132,-1000.0,0.00027193,2]
[313879585,1707768644141,-9331.52947864,0.00027354,2]
[313879586,1707768644151,-1000.0,0.000274,2]
[313879587,1707768644159,-5000.0,0.000275,2]
[313879588,1707768644172,-978.10918798,0.00027652,2]
[313879589,1707768644181,-5737.93648607,0.00027652,2]
[313879590,1707768644190,-3650.60603199,0.00027899,3]
[313879591,1707768644199,-310.0,0.00027937,2]
[313879592,1707768644209,-9331.52947864,0.0002799,2]
[313879593,1707768644222,-206.0,0.0002806,6]
[313879594,1707768644231,-236.0,0.00028106,5]
[313879595,1707768644240,-761.23,0.00028324,2]
[313879596,1707768644250,-9331.52947864,0.00028627,2]
[313879597,1707768644259,-500.0,0.000288,2]
[313879598,1707768644268,-978.10918798,0.00028842,2]
[313879599,1707768644277,-5737.93648607,0.00028842,2]
[313879600,1707768644287,-319.78,0.00028859,2]
[313879601,1707768644297,-3650.60603199,0.000289,4]
[313879602,1707768644306,-1350.0,0.00029,3]
[313879603,1707768644315,-1184.27940036,0.00029,15]
[313879604,1707768644325,-287.62759136,0.00029001,2]
[313879605,1707768644334,-1000.0,0.000292,2]
[313879606,1707768644343,-1024.11934627,0.000292,16]
[313879607,1707768644353,-186599.12011414,0.00029263,2]
[313879609,1707768646529,-426.40593,0.00022999,2]
[313879610,1707768646543,-1483.6619,0.00022999,2]
[313879611,1707768646645,-801.93876052,0.00022999,2]
[313879612,1707768646657,-1568.73135001,0.00022999,2]
[313879613,1707768646667,-612.37325121,0.00022999,2]
[313879614,1707768646677,-229.77224513,0.00022999,2]
[313879615,1707768646688,-260.10445554,0.00026631,2]
[313879616,1707768646698,-386695.6982719,0.00029263,2]
[313879617,1707768646719,-580.31774756,0.00029263,2]
[313879618,1707768646733,-49793.70885506,0.00029263,2]
[313879620,1707768765437,153.08796377,0.00022312,2]
[313879621,1707768844480,460.40072518,0.00022312,2]
[313879630,1707769150572,267.0,0.00021962,2]
[313879631,1707769366682,5000.0,0.00025,10]
[313879632,1707769421668,475.01,0.00022373,2]
[313879653,1707769831551,-200.32610195,0.00022494,2]
[313879654,1707769831560,-155.0,0.00022494,2]
[313879655,1707769831569,-526.65608122,0.00022495,2]
[313879656,1707769831578,-3644.9227114,0.00022495,2]
[313879657,1707769831587,-370.7302819,0.00022496,2]
[313879658,1707769831675,-4173.35512766,0.00022496,2]
[313879659,1707769831684,-1379.00123412,0.00022497,2]
[313879660,1707769831693,-1226.77842006,0.00022498,2]
[313879661,1707769831702,-414.2756901,0.00022499,2]
[313879662,1707769831711,-300.0,0.00022501,2]
[313879663,1707769831721,-159.16759361,0.00022505,2]
[313879664,1707769831731,-19244.10222284,0.000226,2]
[313879665,1707769831741,-248.41552881,0.00022769,2]
[313879666,1707769831750,-581.26028805,0.00022769,2]
[313879667,1707769831760,-150.99,0.00022769,2]
[313879668,1707769831769,-236.09374229,0.00023,2]
[313879669,1707769831779,-278.28192643,0.00023,4]
[313879670,1707769831788,-279.61172964,0.00023,2]
[313879671,1707769831797,-226.94312745,0.00023,2]
[313879672,1707769831806,-17474.58713894,0.00023,2]
[313879678,1707769831904,-20012.64245956,0.00023,2]
[313879682,1707769831934,-10181.42012267,0.00023,2]
[313879685,1707769831946,-3553.17356917,0.00023,2]
[313879703,1707769838613,-1312.95,0.000229,2]
[313879704,1707769838631,-3106.47560907,0.000229,2]
[313879705,1707769838643,-540.90981559,0.000229,2]
[313879706,1707769838656,-1092.59000025,0.000229,2]
[313879707,1707769838686,-501.40000202,0.000229,2]
[313879708,1707769838798,-647.71465884,0.000229,2]
[313879709,1707769838810,-52305.16364134,0.000229,2]
[313879710,1707769838822,-805.097984,0.000229,2]
[313879711,1707769838834,-8376.00753066,0.000229,2]
[313879712,1707769838845,-2623.6,0.000229,2]
[313879713,1707769838857,-5058.86086469,0.000229,2]
[313879714,1707769838895,-8384.05815138,0.000229,2]
[313879715,1707769838907,-364.89736001,0.000229,2]
[313879716,1707769838918,-529.82133345,0.000229,2]
[313879717,1707769838931,-20552.64171378,0.000229,2]
[313879718,1707769838971,-6974.45498668,0.000229,2]
[313879719,1707769838983,-9313.26827671,0.000229,2]
[313879720,1707769839008,-500.0,0.000229,2]
[313879865,1707769840452,-1175.42221325,0.000229,2]
[313879866,1707769840492,-1125.9606162,0.000229,2]
[313879867,1707769840503,-293.21426,0.000229,2]
[313879868,1707769840514,-10559.9742471,0.000229,2]
[313879869,1707769840526,-1748.56626615,0.000229,2]
[313879870,1707769840538,-1120.0285415,0.000229,2]
[313879871,1707769840588,-644.08472678,0.000229,2]
[313879872,1707769840600,-383.70595248,0.000229,2]
[313879873,1707769840611,-782.91751752,0.000229,2]
[313879874,1707769840634,-425.65719286,0.000229,2]
[313879875,1707769840948,-245164.24334362,0.000229,2]
[313879876,1707769840958,-18465.69670966,0.00023,2]
[313879877,1707769840967,-150.0,0.00023,2]
[313879878,1707769840977,-26682.43535031,0.00023595,2]
[313879879,1707769840986,-910.08,0.00023595,2]
[313879880,1707769840995,-267.0,0.00023605,2]
[313879881,1707769841005,-150.99,0.00023605,2]
[313879882,1707769841014,-10261.14,0.0002391,2]
[313879883,1707769841024,-202.17515354,0.00024,2]
[313879884,1707769841033,-2472.87,0.00024,2]
[313879885,1707769841042,-250.0,0.00024321,2]
[313879886,1707769841051,-659.34,0.0002438,2]
[313879887,1707769841061,-420.0,0.00024439,2]
[313879888,1707769841070,-475.01,0.00024637,2]
[313879889,1707769841079,-165.37,0.00024647,2]
[313879890,1707769841088,-250.0,0.00024658,2]
[313879891,1707769841099,-153.54,0.00024669,2]
[313879892,1707769841109,-150.0,0.0002468,2]
[313879893,1707769841117,-6360.11,0.00024686,2]
[313879894,1707769841128,-1000.0,0.00024758,2]
[313879895,1707769841137,-153.54,0.00024761,2]
[313879896,1707769841146,-3418.43,0.00024806,2]
[313879898,1707769841155,-153.54,0.00024852,2]
[313879900,1707769841164,-153.54,0.00024944,2]
[313879902,1707769841174,-3000.0,0.00025,2]
[313879904,1707769841183,-946.31124793,0.00025,2]
[313879906,1707769841192,-1250.0,0.00025,3]
[313879908,1707769841201,-305.15013947,0.00025,2]
[313879911,1707769841218,-1256.25370781,0.00025,2]
[313879913,1707769841227,-1909.75102483,0.00025,2]
[313879915,1707769841246,-2898.17722834,0.00025,2]
[313879917,1707769841255,-3000.0,0.0002501,2]
[313879919,1707769841264,-3000.0,0.0002502,2]
[313879921,1707769841274,-3000.0,0.0002503,2]
[313879923,1707769841283,-153.54,0.00025036,2]
[313879925,1707769841292,-150.0,0.00025039,2]
[313879927,1707769841301,-3000.0,0.0002504,2]
[313879929,1707769841311,-3000.0,0.0002505,2]
[313879931,1707769841320,-3000.0,0.0002506,2]
[313879933,1707769841329,-300.0,0.00025068,2]
[313879935,1707769841338,-3000.0,0.0002507,2]
[313879937,1707769841347,-500.0,0.00025076,2]
[313879939,1707769841356,-3000.0,0.0002508,2]
[313879941,1707769841365,-3000.0,0.0002509,2]
[313879943,1707769841375,-3000.0,0.000251,2]
[313879945,1707769841384,-3000.0,0.0002511,2]
[313879947,1707769841393,-3000.0,0.0002512,2]
[313879949,1707769841404,-153.54,0.00025128,2]
[313879951,1707769841413,-3000.0,0.0002513,2]
[313879953,1707769841422,-3000.0,0.0002514,2]
[313879955,1707769841431,-4059.070407,0.0002515,2]
[313879957,1707769841440,-153.54,0.0002522,2]
[313879959,1707769841449,-267.0,0.00025249,2]
[313879961,1707769841458,-153.54,0.00025311,2]
[313879963,1707769841467,-153.54,0.00025403,2]
[313879965,1707769841476,-150.0,0.00025437,2]
[313879967,1707769841486,-150.0,0.00025476,2]
[313879969,1707769841495,-153.54,0.00025495,2]
[313879972,1707769841504,-1000.0,0.000255,2]
[313879974,1707769841525,-153.54,0.00025587,2]
[313879976,1707769841536,-153.54,0.00025679,2]
[313879978,1707769841547,-150.0,0.00025699,2]
[313879980,1707769841557,-444.0213,0.00025748,2]
[313879982,1707769841567,-444.0213,0.00025748,2]
[313879984,1707769841578,-222.0213,0.00025748,2]
[313879985,1707769841588,-444.0213,0.00025748,3]
[313879986,1707769841598,-153.54,0.0002577,2]
[313879987,1707769841608,-3250.6,0.00025786,2]
[313879988,1707769841619,-1123.43,0.00025786,2]
[313879989,1707769841629,-153.54,0.00025862,2]
[313879990,1707769841639,-2898.17722825,0.00025892,2]
[313879991,1707769841649,-153.54,0.00025954,2]
[313879992,1707769841658,-300.0,0.00025956,2]
[313879993,1707769841668,-150.0,0.00026006,2]
[313879994,1707769841677,-2857.63,0.0002602,2]
[313879995,1707769841687,-150.0,0.00026041,2]
[313879996,1707769841696,-444.0213,0.00026148,3]
[313879997,1707769841706,-444.0213,0.00026148,3]
[313879998,1707769841715,-488.0213,0.00026148,2]
[313879999,1707769841725,-444.0213,0.00026148,2]
[313880000,1707769841734,-444.0213,0.00026148,3]
[313880001,1707769841744,-166.38,0.00026186,2]
[313880002,1707769841753,-221.77404607,0.00026335,2]
[313880003,1707769841763,-300.0,0.00026438,2]
[313880004,1707769841772,-666.0213,0.00026448,3]
[313880005,1707769841782,-666.0213,0.00026448,3]
[313880006,1707769841792,-666.0213,0.00026448,3]
[313880007,1707769841802,-666.0213,0.00026448,3]
[313880008,1707769841811,-3418.43,0.0002645,2]
[313880009,1707769841821,-587.0,0.00026543,2]
[313880010,1707769841831,-178.8548416,0.00026629,2]
[313880011,1707769841841,-533.18794358,0.0002663,2]
[313880012,1707769841850,-150.0,0.0002663,2]
[313880013,1707769841860,-391.24367519,0.00026734,2]
[313880014,1707769841869,-666.0213,0.00026748,3]
[313880015,1707769841880,-666.0213,0.00026748,3]
[313880016,1707769841889,-666.0213,0.00026748,3]
[313880017,1707769841899,-666.0213,0.00026748,3]
[313880018,1707769841908,-666.0213,0.00026748,3]
[313880019,1707769841918,-666.0213,0.00026748,3]
[313880020,1707769841927,-150.0,0.00026758,2]
[313880021,1707769841937,-150.0,0.00026767,2]
[313880022,1707769841946,-150.0,0.00026769,2]
[313880023,1707769841956,-2898.17722825,0.00026784,2]
[313880024,1707769841965,-150.0,0.00026809,2]
[313880025,1707769841975,-20290.01736154,0.00026819,2]
[313880026,1707769841984,-267.0,0.00026893,2]
[313880027,1707769841994,-475.01,0.00026901,2]
[313880028,1707769842004,-150.0,0.00026901,2]
[313880029,1707769842013,-150.0,0.00026927,2]
[313880030,1707769842023,-2857.63,0.00026941,2]
[313880031,1707769842032,-150.0,0.00026954,2]
[313880032,1707769842041,-1300.0,0.00027,3]
[313880033,1707769842051,-418.50178933,0.00027,2]
[313880034,1707769842060,-666.0213,0.00027148,3]
[313880035,1707769842070,-666.0213,0.00027148,3]
[313880036,1707769842079,-666.0213,0.00027148,3]
[313880037,1707769842089,-666.0213,0.00027148,3]
[313880038,1707769842098,-666.0213,0.00027148,2]
[313880039,1707769842108,-666.0213,0.00027148,2]
[313880040,1707769842117,-666.0213,0.00027148,2]
[313880041,1707769842127,-666.0213,0.00027148,2]
[313880042,1707769842137,-150.0,0.00027237,2]
[313880043,1707769842147,-150.0,0.00027264,2]
[313880044,1707769842157,-2038.28136344,0.00027297,3]
[313880045,1707769842166,-367.59909898,0.00027397,2]
[313880046,1707769842176,-35287.04,0.00027397,2]
[313880047,1707769842186,-64411.06,0.00027397,2]
[313880048,1707769842195,-500.0,0.000274,2]
[313880049,1707769842205,-1656.57,0.000274,2]
[313880050,1707769842214,-150.0,0.00027402,2]
[313880051,1707769842223,-12394.9183,0.00027431,2]
[313880052,1707769842232,-150.0,0.00027444,2]
[313880053,1707769842241,-150.0,0.00027445,2]
[313880054,1707769842251,-666.0213,0.00027448,3]
[313880055,1707769842260,-666.0213,0.00027448,3]
[313880056,1707769842270,-666.0213,0.00027448,3]
[313880057,1707769842279,-666.0213,0.00027448,3]
[313880058,1707769842289,-666.0213,0.00027448,2]
[313880059,1707769842299,-666.0213,0.00027448,2]
[313880060,1707769842309,-666.0213,0.00027448,2]
[313880061,1707769842318,-150.0,0.00027454,2]
[313880062,1707769842327,-150.0,0.00027456,2]
[313880063,1707769842337,-150.0,0.00027472,2]
[313880064,1707769842346,-457.87,0.00027487,2]
[313880065,1707769842356,-35287.04,0.00027556,2]
[313880066,1707769842365,-150.0,0.00027629,2]
[313880067,1707769842375,-391.24367519,0.00027633,2]
[313880068,1707769842384,-1245.23221993,0.00027659,2]
[313880069,1707769842393,-1656.57,0.00027666,2]
[313880070,1707769842403,-2038.28136342,0.00027669,3]
[313880071,1707769842413,-2898.17722825,0.00027676,2]
[313880072,1707769842422,-150.0,0.000277,2]
[313880073,1707769842432,-35287.04,0.00027714,2]
[313880074,1707769842442,-165.37,0.00027728,2]
[313880075,1707769842451,-666.0213,0.00027748,3]
[313880076,1707769842460,-666.0213,0.00027748,3]
[313880077,1707769842470,-666.0213,0.00027748,3]
[313880078,1707769842479,-666.0213,0.00027748,3]
[313880079,1707769842489,-666.0213,0.00027748,3]
[313880080,1707769842498,-666.0213,0.00027748,2]
[313880081,1707769842508,-666.0213,0.00027748,2]
[313880082,1707769842517,-150.0,0.00027841,2]
[313880083,1707769842527,-150.0,0.00027851,2]
[313880084,1707769842536,-1000.0,0.00027853,2]
[313880085,1707769842548,-2857.63,0.00027861,2]
[313880086,1707769842558,-150.0,0.00027864,2]
[313880087,1707769842567,-35287.04,0.00027872,2]
[313880088,1707769842577,-150.0,0.00027875,2]
[313880089,1707769842587,-150.0,0.00027915,2]
[313880090,1707769842597,-185.85991054,0.0002793,2]
[313880091,1707769842606,-1656.57,0.0002799,2]
[313880092,1707769842616,-181.10463162,0.0002799,2]
[313880093,1707769842629,-691.71415836,0.00028,2]
[313880094,1707769842639,-177161.15226812,0.00028,2]
[313880095,1707769842648,-200.0,0.00028,2]
[313880096,1707769842658,-1000.0,0.00028,2]
[313880097,1707769842668,-35287.04,0.0002803,2]
[313880098,1707769842677,-150.0,0.00028035,2]
[313880099,1707769842687,-2038.28136342,0.00028041,3]
[313880100,1707769842697,-3418.43,0.00028094,2]
[313880101,1707769842707,-1000.0,0.000281,2]
[313880102,1707769842716,-1000.0,0.000281,2]
[313880103,1707769842725,-1179.0,0.000281,2]
[313880104,1707769842735,-1000.0,0.000281,2]
[313880105,1707769842744,-666.0213,0.00028148,3]
[313880106,1707769842753,-666.0213,0.00028148,3]
[313880107,1707769842763,-666.0213,0.00028148,3]
[313880108,1707769842772,-666.0213,0.00028148,3]
[313880109,1707769842781,-666.0213,0.00028148,3]
[313880110,1707769842791,-666.0213,0.00028148,3]
[313880111,1707769842800,-666.0213,0.00028148,3]
[313880112,1707769842810,-35287.04,0.00028189,2]
[313880113,1707769842819,-1000.0,0.000282,2]
[313880114,1707769842828,-177.31122357,0.00028248,2]
[313880115,1707769842838,-528.78755995,0.00028267,2]
[313880116,1707769842847,-150.0,0.00028289,2]
[313880117,1707769842857,-503.52,0.00028301,2]
[313880118,1707769842866,-5251.10635141,0.00028336,2]
[313880119,1707769842875,-1656.57,0.00028337,2]
[313880120,1707769842884,-35287.04,0.00028347,2]
[313880121,1707769842893,-150.0,0.00028367,2]
[313880122,1707769842902,-150.0,0.00028382,2]
[313880123,1707769842911,-185.85991052,0.00028397,2]
[313880124,1707769842921,-2038.28136342,0.00028413,4]
[313880125,1707769842930,-150.0,0.00028414,2]
[313880126,1707769842939,-150.0,0.00028444,2]
[313880127,1707769842949,-666.0213,0.00028448,3]
[313880128,1707769842958,-666.0213,0.00028448,3]
[313880129,1707769842968,-666.0213,0.00028448,3]
[313880130,1707769842977,-666.0213,0.00028448,3]
[313880131,1707769842986,-666.0213,0.00028448,3]
[313880132,1707769842995,-666.0213,0.00028448,3]
[313880133,1707769843004,-35287.04,0.00028505,2]
[313880134,1707769843014,-391.24367519,0.00028532,2]
[313880135,1707769843022,-267.0,0.00028537,2]
[313880136,1707769843032,-2898.17722825,0.00028568,2]
[313880137,1707769843041,-150.0,0.00028597,2]
[313880138,1707769843050,-73670.0,0.00028611,2]
[313880139,1707769843059,-35287.04,0.00028664,2]
[313880140,1707769843068,-150.0,0.00028668,2]
[313880141,1707769843077,-150.0,0.00028688,2]
[313880142,1707769843086,-25138.0,0.000287,2]
[313880143,1707769843095,-3933.0,0.000287,2]
[313880144,1707769843104,-1000.0,0.000287,2]
[313880145,1707769843113,-150.0,0.00028703,2]
[313880146,1707769843122,-666.0213,0.00028748,3]
[313880147,1707769843133,-666.0213,0.00028748,3]
[313880148,1707769843142,-666.0213,0.00028748,3]
[313880149,1707769843151,-666.0213,0.00028748,3]
[313880150,1707769843161,-666.0213,0.00028748,3]
[313880151,1707769843170,-666.0213,0.00028748,3]
[313880152,1707769843179,-2857.63,0.00028781,2]
[313880153,1707769843188,-2038.28136342,0.00028784,4]
[313880154,1707769843197,-1656.57,0.0002879,2]
[313880155,1707769843206,-2000.0,0.000288,3]
[313880156,1707769843215,-1000.0,0.000288,2]
[313880157,1707769843225,-35287.04,0.00028822,2]
[313880158,1707769843234,-823.0,0.00028829,2]
[313880159,1707769843243,-150.0,0.00028838,2]
[313880160,1707769843253,-457.87,0.00028861,2]
[313880161,1707769843262,-185.85991052,0.00028865,2]
[313880162,1707769843271,-150.0,0.00028872,2]
[313880163,1707769843280,-250.0,0.000289,2]
[313880164,1707769843289,-155.0,0.000289,2]
[313880165,1707769843298,-177.24,0.000289,2]
[313880166,1707769843307,-150.0,0.000289,2]
[313880167,1707769843316,-258.48,0.000289,7]
[313880168,1707769843326,-3000.0,0.000289,2]
[313880169,1707769843335,-3000.0,0.000289,2]
[313880170,1707769843344,-3000.0,0.000289,2]
[313880171,1707769843354,-3000.0,0.000289,2]
[313880172,1707769843555,-3000.0,0.000289,2]
[313880173,1707769843565,-3000.0,0.000289,2]
[313880174,1707769843574,-3000.0,0.000289,2]
[313880175,1707769843583,-3000.0,0.000289,2]
[313880176,1707769843594,-3000.0,0.000289,2]
[313880177,1707769843603,-3000.0,0.000289,2]
[313880178,1707769843612,-3000.0,0.000289,2]
[313880179,1707769843621,-3000.0,0.000289,2]
[313880180,1707769843632,-3000.0,0.000289,2]
[313880181,1707769843641,-3000.0,0.000289,2]
[313880182,1707769843650,-3000.0,0.000289,2]
[313880183,1707769843659,-3000.0,0.000289,2]
[313880184,1707769843669,-5157.09746085,0.000289,2]
[313880185,1707769843678,-163.35741115,0.00028903,2]
[313880186,1707769843688,-8173.45400997,0.0002898,2]
[313880187,1707769843697,-1350.0,0.00029,3]
[313880188,1707769843706,-150.0,0.00029,2]
[313880189,1707769843715,-150.0,0.00029,2]
[313880190,1707769843724,-258.48,0.00029037,7]
[313880191,1707769843733,-150.0,0.0002904,2]
[313880192,1707769843742,-167.96385491,0.00029048,2]
[313880194,1707769843751,-666.0213,0.00029148,3]
[313880195,1707769843761,-666.0213,0.00029148,3]
[313880196,1707769843770,-666.0213,0.00029148,3]
[313880197,1707769843780,-666.0213,0.00029148,3]
[313880198,1707769843789,-666.0213,0.00029148,3]
[313880199,1707769843799,-666.0213,0.00029148,3]
[313880200,1707769843808,-2038.28136342,0.00029156,4]
[313880201,1707769843818,-847.7679,0.00029163,2]
[313880202,1707769843827,-5903.697,0.00029163,2]
[313880203,1707769843836,-2925.2538,0.00029163,2]
[313880204,1707769843845,-475.01,0.00029165,2]
[313880205,1707769843854,-250.0,0.00029174,2]
[313880206,1707769843863,-258.48,0.00029174,7]
[313880207,1707769843872,-216.03758245,0.00029232,2]
[313880208,1707769843882,-800.0,0.00029233,2]
[313880210,1707769843891,-800.0,0.00029233,2]
[313880212,1707769843901,-309.62501562,0.00029261,2]
[313880214,1707769843910,-673.53913339,0.00029261,2]
[313880216,1707769843920,-614.38226532,0.00029261,2]
[313880217,1707769843929,-434.91511073,0.00029261,2]
[313880218,1707769843938,-155.25328358,0.00029261,2]
[313880219,1707769843947,-476.48497332,0.00029261,2]
[313880220,1707769843956,-397.93342097,0.00029261,2]
[313880221,1707769843965,-214.07036543,0.00029261,2]
[313880222,1707769843974,-3042.24282794,0.00029261,2]
[313880223,1707769843983,-204.0,0.00029262,2]
[313880224,1707769843992,-6350.11220784,0.00029262,2]
[313880225,1707769844002,-155.0,0.00029262,2]
[313880226,1707769844011,-683.5737178,0.00029262,2]
[313880227,1707769844021,-251.64534618,0.00029262,2]
[313880228,1707769844030,-258.07997514,0.00029263,2]
[313880229,1707769844039,-190.9565915,0.00029263,2]
[313880230,1707769844048,-200.0,0.00029263,2]
[313880231,1707769844057,-550.61358106,0.00029263,2]
[313880232,1707769844066,-2000.0,0.00029263,2]
[313880233,1707769844075,-200.0,0.00029263,2]
[313880234,1707769844085,-200.0,0.00029263,2]
[313880235,1707769844093,-2000.0,0.00029263,2]
[313880236,1707769844102,-200.0,0.00029263,2]
[313880237,1707769844111,-150.0,0.00029291,2]
[313880238,1707769844119,-3663.30566803,0.00029296,30]
[313880239,1707769844129,-150.0,0.00029302,2]
[313880240,1707769844138,-258.48,0.00029311,7]
[313880241,1707769844147,-162.92132155,0.00029313,2]
[313880242,1707769844156,-185.85991052,0.00029332,2]
[313880243,1707769844165,-2352.1234,0.00029348,2]
[313880244,1707769844175,-391.24367519,0.00029431,2]
[313880245,1707769844184,-666.0213,0.00029448,3]
[313880246,1707769844193,-666.0213,0.00029448,3]
[313880247,1707769844202,-666.0213,0.00029448,3]
[313880248,1707769844212,-666.0213,0.00029448,3]
[313880249,1707769844221,-666.0213,0.00029448,3]
[313880250,1707769844230,-666.0213,0.00029448,3]
[313880251,1707769844239,-666.0213,0.00029448,3]
[313880252,1707769844248,-666.0213,0.00029448,3]
[313880253,1707769844258,-666.0213,0.00029448,3]
[313880254,1707769844267,-666.0213,0.00029448,3]
[313880255,1707769844276,-177.24,0.00029448,2]